[Event "WYCC 2018 G16"]
[Site "Halkidiki"]
[Date "2018.10.22"]
[Round "4"]
[White "Nguyen, Vu Thu Hien"]
[Black "Urh, Zala"]
[Result "0-1"]
[ECO "E32"]
[WhiteElo "1841"]
[BlackElo "2066"]
[Annotator "NA"]
[PlyCount "104"]
[EventDate "2018.10.20"]
[EventType "swiss"]
[EventCountry "GRE"]
[SourceTitle "playchess.com"]
[Source "ChessBase"]
[SourceQuality "1"]
[TimeControl "40/5400+30:1800+30"]

1. d4 {[%emt 0:00:00]} Nf6 {[%emt 0:00:00]} 2. c4 {[%emt 0:00:00]} e6 {[%emt 0:00:00]} 3. Nc3 {[%emt 0:00:00]} Bb4 {[%emt 0:00:00]} 4. Qc2 {[%emt 0:00:00]} b6 {[%emt 0:04:25]} 5. Bg5 {[%emt 0:01:36]} h6 {[%emt 0:02:46]} 6. Bh4 {[%emt 0:00:52]} Bb7 {[%emt 0:01:16]} 7. Nf3 {[%emt 0:00:36]} O-O {[%emt 0:04:09] E13: Queen's Indian/Nimzo-Indian hybrid: 4 Nc3 Bb7 5 Bg5 h6 6 Bh4 Bb4} (7... g5 8. Bg3 Ne4 9. e3 Bxc3+ 10. bxc3 d6 11. Bd3 f5 12. d5 Qf6 13. Bxe4 fxe4 14. Qxe4 Qxc3+ 15. Ke2 Qb2+ 16. Nd2 Qf6 17. h4 g4 18. h5 Nd7 19. Bh4 Qf5 20. Qxf5 exf5 {0-1 (34) Tang,A (2513)-Nakamura,H (2781) chess.com INT 2018}) 8. a3 {[%emt 0:01:01]} Bxc3+ {[%emt 0:00:29]} 9. bxc3 {[%emt 0:00:24]} c5 {[%emt 0:03:11]} 10. e3 {[%emt 0:00:22]} d6 {[%emt 0:03:17]} 11. Be2 {[%emt 0:00:52]} Nc6 $146 {[%emt 0:00:56]} ({Predecessor:} 11... Nbd7 12. O-O Qe7 13. Nd2 Rac8 14. Rac1 e5 15. d5 {1-0 (66) Medic,M (2300)-Gurieli,N (2380) Belgrade 1988}) 12. O-O {[%emt 0:00:08]} e5 {[%emt 0:03:31]} 13. Rfd1 {[%emt 0:08:45]} Qe7 {[%emt 0:01:28]} 14. Rac1 {[%emt 0:01:25]} Rfe8 {[%emt 0:03:45]} 15. Bf1 {[%emt 0:01:34]} Na5 {[%emt 0:07:44]} 16. Nd2 {[%emt 0:04:06]} Rac8 {[%emt 0:00:29]} 17. Qf5 {[%emt 0:05:26]} g5 {[%emt 0:08:36]} 18. Bg3 {[%emt 0:00:45]} Rcd8 {[%emt 0:00:53]} 19. Qc2 {[%emt 0:11:57]} Nh5 {[%emt 0:04:35]} 20. Nb3 {[%emt 0:03:27]} Nxb3 {[%emt 0:03:21]} 21. Qxb3 {[%emt 0:00:02]} f5 {[%emt 0:00:26]} 22. dxc5 $17 {[%emt 0:07:46]} f4 {[%emt 0:08:35]} 23. cxd6 {[%emt 0:01:59]} Qf7 {[%emt 0:01:39]} 24. Qa4 {[%emt 0:03:26]} fxg3 {[%emt 0:01:22]} 25. hxg3 {[%emt 0:00:01]} Rf8 {[%emt 0:04:05]} 26. Rd2 {[%emt 0:00:14]} Bc8 {[%emt 0:05:42]} 27. Qb5 {[%emt 0:05:46]} Nf6 {[%emt 0:05:03]} 28. f3 {[%emt 0:02:00]} Nd7 {[%emt 0:02:54]} 29. a4 {[%emt 0:01:53]} Nc5 {[%emt 0:04:29]} 30. a5 {[%emt 0:00:55]} Bd7 {[%emt 0:00:01]} 31. Qb4 {[%emt 0:01:38]} Rb8 {[%emt 0:00:07]} 32. axb6 {[%emt 0:00:09]} axb6 {[%emt 0:00:01]} 33. Ra1 {[%emt 0:08:31]} e4 {[%emt 0:03:02]} 34. Be2 {[%emt 0:01:28]} Qe6 {[%emt 0:00:51]} 35. Re1 {[%emt 0:00:53]} Bc6 {[%emt 0:01:16]} 36. f4 {[%emt 0:00:46]} gxf4 {[%emt 0:01:02]} 37. gxf4 {[%emt 0:00:10]} Kh8 {[%emt 0:00:57]} 38. Bf1 {[%emt 0:07:02]} Rg8 {[%emt 0:00:44]} 39. Red1 {[%emt 0:02:00]} Bd7 {[%emt 0:01:15]} 40. Re1 {[%emt 0:00:00]} Qg6 {[%emt 0:00:00]} 41. Qb1 {[%emt 0:05:22]} Qg3 {[%emt 0:05:29]} 42. Ree2 {[%emt 0:01:34]} h5 {[%emt 0:11:24]} 43. Rd5 {[%emt 0:00:33]} Bg4 {[%emt 0:01:13]} 44. Rb2 {[%emt 0:09:27]} Qxe3+ {[%emt 0:05:03]} 45. Kh1 {[%emt 0:00:02]} Na4 {[%emt 0:01:25]} 46. Rb3 {[%emt 0:00:45]} h4 {[%emt 0:02:53]} 47. Qa2 {[%emt 0:04:28]} h3 {[%emt 0:02:48]} 48. Qd2 {[%emt 0:03:18]} Qxd2 {[%emt 0:04:25]} 49. Rxd2 {[%emt 0:00:03]} e3 {[%emt 0:00:19]} 50. Rd5 {[%emt 0:01:31]} e2 {[%emt 0:01:17]} 51. Bxe2 {[%emt 0:00:06]} Bxe2 {[%emt 0:00:09]} 52. gxh3 {[%emt 0:00:19]} Bf3+ {[%emt 0:00:09]} 0-1

[Event "WYCC 2018 G16"]
[Site "Halkidiki"]
[Date "2018.10.22"]
[Round "4"]
[White "Hovhannisyan, Mane"]
[Black "Gombocz, Zsofia"]
[Result "1/2-1/2"]
[ECO "E06"]
[WhiteElo "1730"]
[BlackElo "2038"]
[Annotator "NA"]
[PlyCount "86"]
[EventDate "2018.10.20"]
[EventType "swiss"]
[EventCountry "GRE"]
[SourceTitle "playchess.com"]
[Source "ChessBase"]
[SourceQuality "1"]
[TimeControl "40/5400+30:1800+30"]

1. d4 {[%emt 0:00:00]} d5 {[%emt 0:00:00]} 2. Nf3 {[%emt 0:00:00]} Nf6 {[%emt 0:00:00]} 3. c4 {[%emt 0:00:00]} e6 {[%emt 0:00:00]} 4. g3 {[%emt 0:00:00]} Be7 {[%emt 0:00:00]} 5. Bg2 {[%emt 0:00:00]} O-O {[%emt 0:00:14]} 6. O-O {[%emt 0:00:00]} c6 {[%emt 0:00:40]} 7. Qc2 {[%emt 0:00:10]} b6 {[%emt 0:00:14]} 8. Nc3 {[%emt 0:02:52]} Ba6 {[%emt 0:05:40]} 9. cxd5 {[%emt 0:12:34]} cxd5 {[%emt 0:04:35]} 10. Ne5 {[%emt 0:00:38]} Bd6 {[%emt 0:04:44]} 11. Rd1 {[%emt 0:00:56]} Nbd7 {[%emt 0:04:09]} 12. Bf4 {[%emt 0:00:45]} Bxe5 {[%emt 0:06:23]} 13. dxe5 {[%emt 0:01:42]} Nh5 {[%emt 0:21:09]} 14. e4 {[%emt 0:03:53]} Nxf4 {[%emt 0:00:29]} 15. gxf4 {[%emt 0:00:02]} Qh4 {[%emt 0:10:03]} 16. exd5 {[%emt 0:06:16]} Qxf4 {[%emt 0:09:46]} 17. dxe6 {[%emt 0:03:50]} Nxe5 $18 {[%emt 0:00:22]} 18. e7 {[%emt 0:19:24]} Ng4 {[%emt 0:10:10]} 19. exf8=Q+ {[%emt 0:02:31]} Rxf8 {[%emt 0:00:16]} 20. Rd3 {[%emt 0:08:09]} Qxh2+ {[%emt 0:02:04]} 21. Kf1 {[%emt 0:00:06]} Ne5 {[%emt 0:00:51]} 22. Rad1 {[%emt 0:02:13]} Nxd3 {[%emt 0:04:13]} 23. Rxd3 {[%emt 0:00:15]} Bxd3+ {[%emt 0:05:18]} 24. Qxd3 {[%emt 0:00:01]} Qf4 {[%emt 0:00:38]} 25. Be4 {[%emt 0:14:04]} Qc1+ {[%emt 0:02:57]} 26. Nd1 {[%emt 0:02:10]} g6 {[%emt 0:01:21]} 27. b3 {[%emt 0:00:36]} Re8 {[%emt 0:00:57]} 28. Bd5 {[%emt 0:00:24]} Qa1 {[%emt 0:03:45]} 29. a4 {[%emt 0:00:25]} Qf6 {[%emt 0:01:01]} 30. Ne3 {[%emt 0:00:19]} Rc8 {[%emt 0:00:54]} 31. Bc4 {[%emt 0:00:27]} Rd8 {[%emt 0:02:15]} 32. Nd5 {[%emt 0:00:58]} Qa1+ {[%emt 0:00:45]} 33. Kg2 {[%emt 0:00:05]} Qe5 {[%emt 0:00:24]} 34. f4 {[%emt 0:00:49]} Qb2+ {[%emt 0:02:02]} 35. Kf3 {[%emt 0:00:32]} Re8 {[%emt 0:00:57]} 36. Ne3 {[%emt 0:06:57]} Qh2 {[%emt 0:01:32]} 37. Qd4 {[%emt 0:00:51]} Qh1+ {[%emt 0:00:47]} 38. Ng2 {[%emt 0:03:55]} Qh3+ {[%emt 0:01:52]} 39. Kf2 {[%emt 0:00:11]} Qf5 {[%emt 0:00:25]} 40. Bd5 {[%emt 0:00:00]} Qc2+ {[%emt 0:00:00]} 41. Kg3 {[%emt 0:08:50]} Qe2 {[%emt 0:02:53]} 42. Bf3 {[%emt 0:04:26]} Qe6 {[%emt 0:01:13]} 43. Bd5 {[%emt 0:06:32]} Qe2 {[%emt 0:00:17]} 1/2-1/2

[Event "WYCC 2018 G16"]
[Site "Halkidiki"]
[Date "2018.10.22"]
[Round "4"]
[White "Sanabria Taskila, Jenny Maria"]
[Black "Hercog, Nusa"]
[Result "1/2-1/2"]
[ECO "B47"]
[WhiteElo "1728"]
[BlackElo "2017"]
[Annotator "NA"]
[PlyCount "65"]
[EventDate "2018.10.20"]
[EventType "swiss"]
[EventCountry "GRE"]
[SourceTitle "playchess.com"]
[Source "ChessBase"]
[SourceQuality "1"]
[TimeControl "40/5400+30:1800+30"]

1. e4 {[%emt 0:00:00]} c5 {[%emt 0:00:00]} 2. Nf3 {[%emt 0:00:00]} Nc6 {[%emt 0:00:00]} 3. d4 {[%emt 0:00:00]} cxd4 {[%emt 0:00:00]} 4. Nxd4 {[%emt 0:00:00]} e6 {[%emt 0:00:00]} 5. Nc3 {[%emt 0:00:00]} Qc7 {[%emt 0:00:05]} 6. Qd3 {[%emt 0:00:06]} Nxd4 {[%emt 0:00:22]} 7. Qxd4 {[%emt 0:00:16]} a6 {[%emt 0:00:12]} 8. Be3 {[%emt 0:00:41]} b5 {[%emt 0:01:02]} 9. a3 {[%emt 0:00:50]} Bb7 {[%emt 0:01:17]} 10. Be2 {[%emt 0:01:15]} Nf6 {[%emt 0:03:15]} 11. O-O {[%emt 0:03:42]} Be7 {[%emt 0:12:55]} 12. f4 {[%emt 0:10:02]} Rc8 {[%emt 0:07:31]} 13. Bf3 {[%emt 0:14:22]} O-O {[%emt 0:12:55]} 14. Qd2 {[%emt 0:09:24]} d5 {[%emt 0:24:00]} 15. exd5 {[%emt 0:07:47]} Bxd5 {[%emt 0:01:40]} 16. Bxd5 {[%emt 0:02:19]} Rfd8 {[%emt 0:01:36]} 17. Qf2 {[%emt 0:03:21]} Nxd5 {[%emt 0:02:08]} 18. Nxd5 {[%emt 0:02:12]} Rxd5 {[%emt 0:00:06]} 19. c3 {[%emt 0:01:25]} Qd7 {[%emt 0:04:34]} 20. Qf3 {[%emt 0:04:46]} Rd8 {[%emt 0:05:47]} 21. Bd4 {[%emt 0:06:41]} f6 {[%emt 0:05:37]} 22. Rae1 {[%emt 0:03:26]} Bc5 {[%emt 0:03:53]} 23. Bxc5 {[%emt 0:01:28]} Rxc5 {[%emt 0:00:03]} 24. Qe3 {[%emt 0:00:59]} Rc6 {[%emt 0:00:27]} 25. Rd1 {[%emt 0:01:51]} Rd6 {[%emt 0:04:46]} 26. Rxd6 {[%emt 0:01:26]} Qxd6 {[%emt 0:00:01]} 27. Re1 {[%emt 0:00:57]} Kf7 {[%emt 0:03:34]} 28. Re2 {[%emt 0:01:19]} Rd7 {[%emt 0:00:46]} 29. Kf2 {[%emt 0:00:45]} Rd8 {[%emt 0:00:31]} 30. Re1 {[%emt 0:00:32]} Qc6 {[%emt 0:01:03]} 31. Re2 {[%emt 0:01:17]} Qd5 {[%emt 0:01:20]} 32. Qe4 {[%emt 0:03:41]} Qc5+ {[%emt 0:01:02]} 33. Kg3 {[%emt 0:03:42]} 1/2-1/2

[Event "WYCC 2018 G16"]
[Site "Halkidiki"]
[Date "2018.10.22"]
[Round "4"]
[White "Hewawasam, H Y Nevanjee Dimany"]
[Black "Moerwald, Magdalena"]
[Result "0-1"]
[ECO "B12"]
[WhiteElo "1686"]
[BlackElo "1875"]
[Annotator "NA"]
[PlyCount "150"]
[EventDate "2018.10.20"]
[EventType "swiss"]
[EventCountry "GRE"]
[SourceTitle "playchess.com"]
[Source "ChessBase"]
[SourceQuality "1"]
[TimeControl "40/5400+30:1800+30"]

1. e4 {[%emt 0:00:00]} c6 {[%emt 0:00:00]} 2. d4 {[%emt 0:00:00]} d5 {[%emt 0:00:00]} 3. e5 {[%emt 0:00:00]} Bf5 {[%emt 0:00:00]} 4. Nf3 {[%emt 0:00:00]} e6 {[%emt 0:00:00]} 5. Be2 {[%emt 0:00:01]} h6 {[%emt 0:01:19]} 6. O-O {[%emt 0:00:13]} Ne7 {[%emt 0:00:36]} 7. Nbd2 {[%emt 0:00:14]} Bh7 {[%emt 0:00:56]} 8. Nb3 {[%emt 0:02:43]} Nd7 {[%emt 0:01:44]} 9. c3 {[%emt 0:06:19]} Rc8 {[%emt 0:02:49]} 10. Bf4 {[%emt 0:06:37]} Nf5 {[%emt 0:04:11]} 11. Rc1 {[%emt 0:03:39]} Be7 {[%emt 0:02:11]} 12. Bd3 {[%emt 0:06:54]} c5 {[%emt 0:02:58]} 13. dxc5 {[%emt 0:02:56]} Bxc5 {[%emt 0:03:43]} 14. Nxc5 {[%emt 0:00:19]} Nxc5 {[%emt 0:02:39]} 15. Bb5+ {[%emt 0:03:10]} Nd7 {[%emt 0:02:31]} 16. c4 {[%emt 0:10:08]} dxc4 {[%emt 0:04:05]} 17. g4 {[%emt 0:06:41]} Ne7 {[%emt 0:03:01]} 18. Bxc4 {[%emt 0:02:30]} O-O {[%emt 0:02:30]} 19. g5 {[%emt 0:01:24]} h5 {[%emt 0:03:01]} 20. Nd4 {[%emt 0:06:07]} Nb6 {[%emt 0:10:10]} 21. Bb3 {[%emt 0:03:23]} Rxc1 {[%emt 0:01:33]} 22. Bxc1 {[%emt 0:00:08]} Bg6 {[%emt 0:05:00]} 23. Nb5 {[%emt 0:03:11]} Bd3 {[%emt 0:02:12]} 24. Nd6 {[%emt 0:11:40]} Bxf1 {[%emt 0:01:11]} 25. Qxf1 {[%emt 0:00:11]} Qc7 {[%emt 0:02:24]} 26. Be3 {[%emt 0:01:04]} Nbc8 {[%emt 0:02:05]} 27. Qd1 {[%emt 0:03:14]} g6 {[%emt 0:02:09]} 28. Bf4 {[%emt 0:02:25]} Qc6 {[%emt 0:03:43]} 29. Qe2 {[%emt 0:02:07]} Nxd6 {[%emt 0:01:05]} 30. exd6 {[%emt 0:01:18]} Nf5 {[%emt 0:02:11]} 31. Qe5 {[%emt 0:02:14]} Nh4 {[%emt 0:01:26]} 32. Kf1 {[%emt 0:00:51]} Qa6+ {[%emt 0:00:10]} 33. Qe2 {[%emt 0:00:21]} Qxe2+ {[%emt 0:03:30]} 34. Kxe2 {[%emt 0:00:04]} Rd8 {[%emt 0:00:21]} 35. Bc2 {[%emt 0:02:39]} Kf8 {[%emt 0:01:45]} 36. Kd2 {[%emt 0:01:40]} Nf3+ {[%emt 0:01:06]} 37. Ke3 {[%emt 0:01:47]} e5 {[%emt 0:02:08]} 38. Bg3 {[%emt 0:00:05]} h4 {[%emt 0:00:15]} 39. Kxf3 {[%emt 0:00:26]} hxg3 {[%emt 0:00:06]} 40. fxg3 {[%emt 0:00:00]} Rxd6 {[%emt 0:00:00]} 41. Ke3 {[%emt 0:00:30]} Rb6 {[%emt 0:01:41]} 42. b3 {[%emt 0:00:32]} Ra6 {[%emt 0:00:35]} 43. a4 {[%emt 0:00:12]} Rc6 {[%emt 0:00:13]} 44. Kd2 {[%emt 0:00:21]} Ke7 {[%emt 0:00:54]} 45. g4 {[%emt 0:00:12]} f6 {[%emt 0:01:04]} 46. gxf6+ {[%emt 0:01:45]} Kxf6 {[%emt 0:00:20]} 47. h4 {[%emt 0:00:04]} Rd6+ {[%emt 0:00:31]} 48. Ke3 {[%emt 0:00:58]} Rd4 {[%emt 0:01:17]} 49. Kf3 {[%emt 0:01:51]} Rb4 {[%emt 0:01:57]} 50. Bd1 {[%emt 0:00:55]} Rd4 {[%emt 0:02:28]} 51. Bc2 {[%emt 0:00:15]} Rf4+ {[%emt 0:01:24]} 52. Kg3 {[%emt 0:01:18]} g5 {[%emt 0:00:20]} 53. h5 {[%emt 0:01:01]} e4 {[%emt 0:00:20]} 54. Bd1 {[%emt 0:00:40]} Rf1 {[%emt 0:01:28]} 55. Be2 {[%emt 0:00:48]} Rc1 {[%emt 0:01:07]} 56. Kf2 {[%emt 0:02:02]} Ke5 {[%emt 0:01:39]} 57. Bc4 {[%emt 0:01:55]} Kf4 {[%emt 0:00:29]} 58. Be6 {[%emt 0:05:16]} e3+ {[%emt 0:00:43]} 59. Ke2 {[%emt 0:00:04]} Rc2+ {[%emt 0:00:21]} 60. Ke1 {[%emt 0:00:15]} Rb2 {[%emt 0:01:06]} 61. Bg8 {[%emt 0:02:36]} Kxg4 {[%emt 0:00:41]} 62. h6 {[%emt 0:00:07]} Rh2 {[%emt 0:00:44]} 63. h7 {[%emt 0:00:05]} Kf4 {[%emt 0:00:25]} 64. b4 {[%emt 0:00:43]} g4 {[%emt 0:00:13]} 65. b5 {[%emt 0:01:24]} g3 {[%emt 0:00:09]} 66. Bd5 {[%emt 0:00:17]} Rxh7 {[%emt 0:00:21]} 67. a5 {[%emt 0:00:27]} Rh5 {[%emt 0:00:27]} 68. Bxb7 {[%emt 0:01:11]} Rxb5 {[%emt 0:00:07]} 69. a6 {[%emt 0:00:05]} g2 {[%emt 0:00:17]} 70. Bxg2 {[%emt 0:00:19]} Rb1+ {[%emt 0:00:07]} 71. Ke2 {[%emt 0:00:09]} Rb2+ {[%emt 0:00:08]} 72. Kf1 {[%emt 0:01:34]} Rf2+ {[%emt 0:00:12]} 73. Kg1 {[%emt 0:00:12]} Kg3 {[%emt 0:00:15]} 74. Kh1 {[%emt 0:01:03]} e2 {[%emt 0:00:24]} 75. Bf1 {[%emt 0:00:38]} exf1=Q# 0-1

[Event "WYCC 2018 G16"]
[Site "Halkidiki"]
[Date "2018.10.22"]
[Round "4"]
[White "Ortega Beltran, Ximena"]
[Black "Aciu, Malina-Andreea"]
[Result "0-1"]
[ECO "A20"]
[WhiteElo "1628"]
[BlackElo "1976"]
[Annotator "NA"]
[PlyCount "52"]
[EventDate "2018.10.20"]
[EventType "swiss"]
[EventCountry "GRE"]
[SourceTitle "playchess.com"]
[Source "ChessBase"]
[SourceQuality "1"]
[TimeControl "40/5400+30:1800+30"]

1. c4 {[%emt 0:00:00]} e5 {[%emt 0:00:00]} 2. g3 {[%emt 0:00:00]} c5 {[%emt 0:00:00]} 3. Bg2 {[%emt 0:00:00]} Nc6 {[%emt 0:00:00]} 4. Nc3 {[%emt 0:00:06]} g6 {[%emt 0:00:00]} 5. h4 {[%emt 0:00:54]} h6 {[%emt 0:02:00]} 6. Nf3 {[%emt 0:02:11]} Bg7 {[%emt 0:00:12]} 7. d3 {[%emt 0:00:27]} Nge7 {[%emt 0:00:32]} 8. Be3 {[%emt 0:06:13]} d6 {[%emt 0:01:45]} 9. Qc1 {[%emt 0:00:55]} Be6 {[%emt 0:07:11]} 10. Ne4 {[%emt 0:07:24]} f5 {[%emt 0:09:57]} 11. Nc3 {[%emt 0:00:53]} Qd7 {[%emt 0:02:49]} 12. a3 {[%emt 0:07:07]} Nd4 {[%emt 0:05:31]} 13. Rb1 {[%emt 0:04:14]} Rc8 {[%emt 0:11:05]} 14. Qd2 $17 {[%emt 0:20:51]} d5 {[%emt 0:07:06]} 15. Bxd4 {[%emt 0:07:02]} cxd4 {[%emt 0:00:44]} 16. cxd5 {[%emt 0:01:42]} dxc3 {[%emt 0:01:30]} 17. bxc3 {[%emt 0:01:54]} Bxd5 {[%emt 0:02:42]} 18. c4 {[%emt 0:00:13]} Bc6 {[%emt 0:00:22]} 19. Qe3 {[%emt 0:02:43]} Qd6 {[%emt 0:02:12]} 20. O-O {[%emt 0:04:18]} b6 {[%emt 0:02:28]} 21. Rfc1 {[%emt 0:01:01]} O-O {[%emt 0:01:43]} 22. Rb3 {[%emt 0:01:18]} f4 {[%emt 0:03:11]} 23. gxf4 exf4 24. Qd2 {[%emt 0:06:54]} Nf5 {[%emt 0:01:23]} 25. c5 {[%emt 0:04:24]} bxc5 {[%emt 0:00:48]} 26. Qa5 Qe6 0-1

[Event "WYCC 2018 G16"]
[Site "Halkidiki"]
[Date "2018.10.22"]
[Round "4"]
[White "Cotun, Mihaela"]
[Black "Djidjeli, Sarah"]
[Result "0-1"]
[ECO "B22"]
[WhiteElo "1482"]
[BlackElo "1952"]
[Annotator "NA"]
[PlyCount "130"]
[EventDate "2018.10.20"]
[EventType "swiss"]
[EventCountry "GRE"]
[SourceTitle "playchess.com"]
[Source "ChessBase"]
[SourceQuality "1"]
[TimeControl "40/5400+30:1800+30"]

1. e4 {[%emt 0:00:00]} c5 {[%emt 0:00:00]} 2. c3 {[%emt 0:00:00]} d6 {[%emt 0:00:00]} 3. d4 {[%emt 0:00:00]} Nf6 {[%emt 0:00:00]} 4. Bd3 {[%emt 0:00:00]} g6 {[%emt 0:00:00]} 5. Nf3 {[%emt 0:00:24]} Bg7 {[%emt 0:00:07]} 6. h3 {[%emt 0:00:33]} O-O {[%emt 0:00:22]} 7. Be3 {[%emt 0:00:33]} Na6 {[%emt 0:01:57]} 8. a3 {[%emt 0:03:52]} b6 {[%emt 0:05:06]} 9. b4 {[%emt 0:04:00]} Nd7 {[%emt 0:15:14]} 10. Qd2 {[%emt 0:08:07]} Nc7 {[%emt 0:05:33]} 11. a4 {[%emt 0:03:08]} Bb7 {[%emt 0:08:08]} 12. O-O {[%emt 0:17:12]} Rc8 {[%emt 0:06:04]} 13. Re1 {[%emt 0:04:44]} Re8 {[%emt 0:10:56]} 14. Na3 {[%emt 0:03:56]} Nf6 {[%emt 0:04:33]} 15. Bh6 {[%emt 0:04:06]} Ne6 {[%emt 0:09:31]} 16. d5 {[%emt 0:11:52]} Nc7 {[%emt 0:06:40]} 17. Bxg7 {[%emt 0:04:37]} Kxg7 {[%emt 0:00:06]} 18. b5 {[%emt 0:01:28]} e6 {[%emt 0:07:01]} 19. c4 {[%emt 0:01:10]} Ra8 {[%emt 0:04:33]} 20. Nc2 {[%emt 0:03:07]} a5 {[%emt 0:04:33]} 21. Qc3 {[%emt 0:03:08]} e5 {[%emt 0:00:52]} 22. Ne3 {[%emt 0:02:00]} Bc8 {[%emt 0:00:39]} 23. Nf1 {[%emt 0:08:41]} Nh5 {[%emt 0:01:04]} 24. Ng3 {[%emt 0:01:37]} Nf4 {[%emt 0:01:24]} 25. Ne2 {[%emt 0:00:43]} Qf6 {[%emt 0:01:16]} 26. Nxf4 {[%emt 0:03:53]} Qxf4 {[%emt 0:00:11]} 27. Qc1 {[%emt 0:00:17]} Qf6 {[%emt 0:01:12]} 28. Qg5 {[%emt 0:00:55]} Qe7 {[%emt 0:00:50]} 29. Qxe7 {[%emt 0:03:14]} Rxe7 {[%emt 0:00:03]} 30. Re2 {[%emt 0:02:03]} Ne8 {[%emt 0:00:42]} 31. Kh2 {[%emt 0:01:43]} Bd7 {[%emt 0:00:52]} 32. Rf1 {[%emt 0:00:54]} f5 {[%emt 0:01:55]} 33. Nh4 {[%emt 0:00:56]} Kf6 {[%emt 0:00:36]} 34. g3 {[%emt 0:01:41]} Ng7 {[%emt 0:01:32]} 35. f4 {[%emt 0:01:19]} exf4 {[%emt 0:00:20]} 36. gxf4 {[%emt 0:00:14]} Rae8 {[%emt 0:01:45]} 37. Rfe1 {[%emt 0:00:09]} fxe4 {[%emt 0:01:50]} 38. Bxe4 {[%emt 0:01:26]} Nh5 {[%emt 0:00:50]} 39. Ng2 {[%emt 0:01:02]} Bf5 {[%emt 0:00:20]} 40. Bf3 {[%emt 0:00:00]} Rxe2 {[%emt 0:00:00]} 41. Bxe2 {[%emt 0:04:51]} Ng7 {[%emt 0:03:18]} 42. Bd1 {[%emt 0:05:12]} Rxe1 {[%emt 0:01:38]} 43. Nxe1 {[%emt 0:00:04]} Be4 {[%emt 0:00:13]} 44. Kg3 {[%emt 0:02:22]} Bb1 {[%emt 0:03:18]} 45. Bb3 {[%emt 0:06:23]} Nf5+ {[%emt 0:00:28]} 46. Kf2 {[%emt 0:01:52]} Nd4 {[%emt 0:00:12]} 47. Bd1 {[%emt 0:00:35]} Ba2 {[%emt 0:00:28]} 48. Ng2 {[%emt 0:04:16]} Bxc4 {[%emt 0:02:44]} 49. Ne3 {[%emt 0:00:32]} Bd3 {[%emt 0:01:06]} 50. Ke1 {[%emt 0:05:21]} Nf5 {[%emt 0:02:25]} 51. Ng4+ {[%emt 0:03:31]} Ke7 {[%emt 0:01:31]} 52. Bb3 {[%emt 0:00:52]} Nd4 {[%emt 0:01:16]} 53. Bd1 {[%emt 0:00:20]} Nf5 {[%emt 0:03:40]} 54. Bb3 {[%emt 0:01:01]} Bb1 {[%emt 0:02:43]} 55. Kd2 {[%emt 0:00:39]} h5 {[%emt 0:02:08]} 56. Ne3 {[%emt 0:01:21]} Nxe3 {[%emt 0:00:13]} 57. Kxe3 {[%emt 0:00:00]} Kf6 {[%emt 0:00:05]} 58. h4 {[%emt 0:00:32]} Kf5 {[%emt 0:00:27]} 59. Kf3 {[%emt 0:00:04]} Bd3 {[%emt 0:00:29]} 60. Ke3 {[%emt 0:00:55]} Be4 {[%emt 0:00:59]} 61. Bc4 {[%emt 0:00:27]} Bc2 {[%emt 0:00:20]} 62. Kf3 {[%emt 0:00:33]} Bxa4 {[%emt 0:03:01]} 63. Bd3+ {[%emt 0:00:11]} Kf6 {[%emt 0:00:02]} 64. Ke2 {[%emt 0:00:39]} Bb3 {[%emt 0:00:13]} 65. Ke3 {[%emt 0:00:41]} Bxd5 {[%emt 0:00:07] Kd4 Ke5+} 0-1

[Event "WYCC 2018 G16"]
[Site "Halkidiki"]
[Date "2018.10.22"]
[Round "4"]
[White "Quintana Chanduvi, Daniela Sofia"]
[Black "Puppi Lazo, Stephanie Beatriz"]
[Result "0-1"]
[ECO "B90"]
[WhiteElo "1400"]
[BlackElo "1847"]
[Annotator "NA"]
[PlyCount "76"]
[EventDate "2018.10.20"]
[EventType "swiss"]
[EventCountry "GRE"]
[SourceTitle "playchess.com"]
[Source "ChessBase"]
[SourceQuality "1"]
[TimeControl "40/5400+30:1800+30"]

1. e4 {[%emt 0:00:00]} c5 {[%emt 0:00:00]} 2. Nf3 {[%emt 0:00:00]} d6 {[%emt 0:00:00]} 3. Nc3 {[%emt 0:00:00]} Nf6 {[%emt 0:00:00]} 4. Bc4 {[%emt 0:00:00]} a6 {[%emt 0:00:00]} 5. d4 {[%emt 0:00:04]} cxd4 {[%emt 0:00:00]} 6. Nxd4 {[%emt 0:00:06]} e6 {[%emt 0:00:00]} 7. Bb3 {[%emt 0:00:20]} Nc6 {[%emt 0:00:02]} 8. Be3 {[%emt 0:00:58]} Be7 {[%emt 0:00:10]} 9. Qe2 {[%emt 0:00:38]} Qc7 {[%emt 0:00:09]} 10. O-O-O {[%emt 0:00:22]} O-O {[%emt 0:00:06]} 11. f3 {[%emt 0:00:56]} b5 {[%emt 0:00:23]} 12. Kb1 {[%emt 0:01:12]} Bd7 {[%emt 0:03:26]} 13. Nxc6 {[%emt 0:09:11]} Bxc6 {[%emt 0:00:12]} 14. a3 {[%emt 0:03:46]} Qb7 {[%emt 0:05:22]} 15. Qd3 {[%emt 0:11:50]} a5 {[%emt 0:02:57]} 16. Ba2 {[%emt 0:02:15]} b4 {[%emt 0:01:23]} 17. Ne2 {[%emt 0:06:45]} Bb5 {[%emt 0:05:41]} 18. Bc4 {[%emt 0:11:19]} Bxc4 {[%emt 0:00:13]} 19. Qxc4 {[%emt 0:00:08]} bxa3 {[%emt 0:01:16]} 20. Qb3 {[%emt 0:06:31]} Qxb3 {[%emt 0:00:42]} 21. cxb3 {[%emt 0:00:07]} axb2 {[%emt 0:00:11]} 22. Kxb2 {[%emt 0:00:12]} Rfb8 {[%emt 0:00:29]} 23. Ra1 {[%emt 0:07:13]} a4 {[%emt 0:02:54]} 24. Nd4 {[%emt 0:05:40]} e5 {[%emt 0:01:27]} 25. Nc2 {[%emt 0:02:38]} Rxb3+ {[%emt 0:01:08]} 26. Kc1 {[%emt 0:02:43]} d5 {[%emt 0:00:32]} 27. exd5 {[%emt 0:00:49]} Nxd5 {[%emt 0:00:12]} 28. Bd2 {[%emt 0:03:13]} a3 {[%emt 0:01:17]} 29. Kd1 {[%emt 0:01:42]} Rc8 {[%emt 0:01:25]} 30. Re1 {[%emt 0:01:43]} a2 {[%emt 0:02:52]} 31. Ne3 {[%emt 0:01:31]} Nf4 {[%emt 0:02:04]} 32. Ba5 {[%emt 0:06:06]} Rd3+ {[%emt 0:02:06]} 33. Bd2 {[%emt 0:00:43]} Ba3 {[%emt 0:04:10]} 34. Nc2 {[%emt 0:02:31]} Rcd8 {[%emt 0:00:57]} 35. Nxa3 {[%emt 0:01:26]} Rxd2+ {[%emt 0:00:07]} 36. Kc1 {[%emt 0:00:35]} Rxg2 {[%emt 0:00:14]} 37. Rf1 {[%emt 0:03:41]} Rdd2 {[%emt 0:01:27]} 38. Nc4 Nd3# {[%emt 0:00:09]} 0-1